fUSD/lending_fUSD_20260514
["ID","MTS","AMOUNT","RATE_DAILY","PERIOD"]
[422258917,1778772651000,-3144.37,0.000304,2]
[422258916,1778772651000,-2508.13,0.000304,2]
[422258919,1778772651000,-150.0,0.00030411,14]
[422258918,1778772651000,-172.0,0.00030411,14]
[422258922,1778772651000,-452.05,0.00030436,120]
[422258923,1778772651000,-254.0,0.00030549,30]
[422258924,1778772651000,-306.0,0.00030555,30]
[422258921,1778772651000,-21326.62878664,0.00030431,10]
[422258930,1778772651000,-4481.0,0.00030578,30]
[422258929,1778772651000,-3228.0,0.00030578,30]
[422258925,1778772651000,-155.0,0.00030555,30]
[422258931,1778772651000,-233.0,0.00030578,30]
[422258927,1778772651000,-159.22038882,0.00030568,2]
[422258926,1778772651000,-234.0,0.00030555,30]
[422258928,1778772651000,-573.0,0.00030575,8]
[422258933,1778772651000,-722.0,0.00030578,30]
[422258943,1778772651000,-3865.19966657,0.00030723,10]
[422258932,1778772651000,-191.0,0.00030578,30]
[422258934,1778772651000,-1619.18,0.000306,7]
[422258936,1778772651000,-2829.47,0.000306,14]
[422258935,1778772651000,-842.19,0.000306,7]
[422258939,1778772651000,-1491.0,0.0003061,30]
[422258937,1778772651000,-185.0,0.0003061,30]
[422258938,1778772651000,-420.0,0.0003061,30]
[422258940,1778772651000,-4116.15751734,0.000307,2]
[422258942,1778772651000,-4116.15751732,0.000307,2]
[422258974,1778772651000,-153.7763466,0.00031439,2]
[422258952,1778772651000,-309.54323907,0.00031,2]
[422258971,1778772651000,-842.19,0.000313,7]
[422259004,1778772651000,-700.0,0.00032,2]
[422259003,1778772651000,-14279.3709408,0.00032,5]
[422259007,1778772651000,-500.0,0.00032009,2]
[422259008,1778772651000,-2000.0,0.00032009,2]
[422259009,1778772651000,-2073.56,0.000321,2]
[422259012,1778772651000,-151.0,0.000322,2]
[422259011,1778772651000,-4151.07820803,0.00032189,2]
[422259010,1778772651000,-454.97,0.00032116,7]
[422259013,1778772651000,-273.3004,0.00032204,2]
[422259017,1778772651000,-454.97,0.00032278,7]
[422259014,1778772651000,-2236.0,0.0003221,5]
[422259015,1778772651000,-152.0,0.00032214,9]
[422259005,1778772651000,-208.3309892,0.00032,30]
[422259016,1778772651000,-573.0,0.0003226,10]
[422259018,1778772651000,-779.94,0.00032278,7]
[422259022,1778772651000,-454.97,0.00032441,7]
[422259023,1778772651000,-254.0,0.00032549,30]
[422259021,1778772651000,-2829.47,0.000323,14]
[422259019,1778772651000,-908.39387695,0.000323,2]
[422259025,1778772651000,-155.0,0.00032555,30]
[422259024,1778772651000,-306.0,0.00032555,30]
[422259026,1778772651000,-234.0,0.00032555,30]
[422259028,1778772651000,-4481.0,0.00032578,30]
[422259027,1778772651000,-3228.0,0.00032578,30]
[422259029,1778772651000,-233.0,0.00032578,30]
[422258973,1778772651000,-310.1967143,0.00031375,2]
[422259020,1778772651000,-842.19,0.000323,7]
[422259006,1778772651000,-214.95940296,0.00032,30]
[422258969,1778772651000,-500.0,0.00031234,2]
[422258999,1778772651000,-7675.22183443,0.00031963,30]
[422258998,1778772651000,-454.97,0.00031954,7]
[422258976,1778772651000,-200.44972037,0.000315,2]
[422258972,1778772651000,-2829.47,0.000313,14]
[422258977,1778772651000,-150.0,0.000315,2]
[422258980,1778772651000,-16116.25,0.0003154,7]
[422258979,1778772651000,-1000.0,0.000315,7]
[422258981,1778772651000,-254.0,0.00031549,30]
[422258982,1778772651000,-306.0,0.00031555,30]
[422258983,1778772651000,-155.0,0.00031555,30]
[422258986,1778772651000,-4481.0,0.00031578,30]
[422258984,1778772651000,-234.0,0.00031555,30]
[422258988,1778772651000,-191.0,0.00031578,30]
[422258990,1778772651000,-318.52,0.00031578,7]
[422258975,1778772651000,-189.9639167,0.00031439,2]
[422258987,1778772651000,-233.0,0.00031578,30]
[422258991,1778772651000,-185.0,0.0003161,30]
[422259002,1778772651000,-1010.33520693,0.00032,120]
[422259000,1778772651000,-3557.20329659,0.00032,120]
[422259001,1778772651000,-1760.15619245,0.00032,2]
[422258997,1778772651000,-573.0,0.00031699,9]
[422258996,1778772651000,-350.0,0.00031689,8]
[422258995,1778772651000,-150.0,0.00031644,14]
[422258993,1778772651000,-1491.0,0.0003161,30]
[422258992,1778772651000,-420.0,0.0003161,30]
[422258985,1778772651000,-3228.0,0.00031578,30]
[422258989,1778772651000,-722.0,0.00031578,30]
[422258994,1778772651000,-172.0,0.00031644,14]
[422259067,1778772652000,-46623.37967612,0.00033,5]
[422259059,1778772652000,-8903.78101333,0.00032877,30]
[422259061,1778772652000,-250.0,0.00032879,7]
[422259057,1778772652000,-414.01791719,0.00032877,2]
[422259058,1778772652000,-277.4540143,0.00032877,60]
[422259060,1778772652000,-250.0,0.00032879,7]
[422259056,1778772652000,-500.0,0.00032877,2]
[422259062,1778772652000,-12938.53442052,0.000329,120]
[422259071,1778772652000,-8710.21141011,0.00033,2]
[422259054,1778772652000,-500.0,0.00032877,2]
[422259055,1778772652000,-500.0,0.00032877,2]
[422259069,1778772652000,-151.38282021,0.00033,7]
[422259077,1778772652000,-1270.0,0.0003309,2]
[422259070,1778772652000,-37971.80207642,0.00033,3]
[422259080,1778772652000,-3630.0,0.0003309,2]
[422259073,1778772652000,-162.69,0.00033,120]
[422259078,1778772652000,-1223.0,0.0003309,2]
[422259072,1778772652000,-571.343059,0.00033,14]
[422259075,1778772652000,-5192.39742782,0.00033,2]
[422259076,1778772652000,-1351.38343128,0.00033084,2]
[422259079,1778772652000,-6052.0,0.0003309,2]
[422259082,1778772652000,-234.91445389,0.00033117,2]
[422259081,1778772652000,-157.0,0.00033112,3]
[422259065,1778772652000,-2686.98398688,0.00032984,7]
[422259068,1778772652000,-52150.74011397,0.00033,2]
[422259066,1778772652000,-10005.0,0.00033,7]
[422259042,1778772652000,-151.0,0.00032877,7]
[422259064,1778772652000,-1619.18,0.000329,30]
[422259030,1778772652000,-191.0,0.00032578,30]
[422259032,1778772652000,-500.0,0.00032604,2]
[422259031,1778772652000,-722.0,0.00032578,30]
[422259033,1778772652000,-185.0,0.0003261,30]
[422259034,1778772652000,-420.0,0.0003261,30]
[422259036,1778772652000,-150.0,0.00032636,2]
[422259037,1778772652000,-4908.9668208,0.000328,2]
[422259035,1778772652000,-1491.0,0.0003261,30]
[422259038,1778772652000,-573.0,0.00032822,10]
[422259039,1778772652000,-506.65,0.00032877,2]
[422259041,1778772652000,-349.95,0.00032877,2]
[422259063,1778772652000,-152.61064582,0.000329,2]
[422259040,1778772652000,-1065.33,0.00032877,2]
[422259043,1778772652000,-151.0,0.00032877,7]
[422259046,1778772652000,-254.173726,0.00032877,7]
[422259053,1778772652000,-500.0,0.00032877,2]
[422259048,1778772652000,-254.173726,0.00032877,7]
[422259052,1778772652000,-500.0,0.00032877,2]
[422259045,1778772652000,-151.0,0.00032877,7]
[422259049,1778772652000,-254.173726,0.00032877,7]
[422259044,1778772652000,-151.0,0.00032877,7]
[422259047,1778772652000,-254.173726,0.00032877,7]
[422259050,1778772652000,-1000.0,0.00032877,120]
[422259051,1778772652000,-500.0,0.00032877,2]
[422259083,1778772652000,-1114.2,0.00033156,7]
[422259084,1778772652000,-152.0,0.00033161,10]
[422259074,1778772652000,-208.3309892,0.00033,120]
[422259087,1778772652000,-172.0,0.00033226,30]
[422259110,1778772652000,-1491.0,0.0003361,30]
[422259112,1778772652000,-200.0,0.00033669,2]
[422259118,1778772652000,-1000.0,0.0003392,2]
[422259120,1778772652000,-573.0,0.00033945,11]
[422259121,1778772652000,-500.0,0.00033973,2]
[422259119,1778772652000,-1005.72,0.00033934,30]
[422259122,1778772652000,-151.0,0.00033995,30]
[422259124,1778772652000,-500.0,0.00033995,30]
[422259129,1778772652000,-750.0,0.00034,2]
[422259130,1778772652000,-842.19,0.00034,30]
[422259128,1778772652000,-500.0,0.00033995,30]
[422259123,1778772652000,-623.58710448,0.00033995,30]
[422259126,1778772652000,-151.0,0.00033995,30]
[422259127,1778772652000,-152.0,0.00033995,30]
[422259125,1778772652000,-1235.18214925,0.00033995,30]
[422259132,1778772652000,-211.85,0.00034023,2]
[422259131,1778772652000,-2829.47,0.00034,14]
[422259089,1778772652000,-265980.6042015,0.0003325,2]
[422259140,1778772652000,-591248.47168437,0.00034486,2]
[422259137,1778772652000,-1000.0,0.00034247,120]
[422259136,1778772652000,-5000.0,0.00034247,15]
[422259133,1778772652000,-152.0,0.00034108,11]
[422259135,1778772652000,-2236.0,0.00034182,7]
[422259139,1778772652000,-468.75,0.00034346,7]
[422259138,1778772652000,-150.0,0.00034267,2]
[422259106,1778772652000,-722.0,0.00033578,30]
[422259111,1778772652000,-1081.22,0.00033638,2]
[422259134,1778772652000,-1081.22,0.00034138,2]
[422259109,1778772652000,-420.0,0.0003361,30]
[422259108,1778772652000,-185.0,0.0003361,30]
[422259092,1778772652000,-191.0,0.00033383,2]
[422259091,1778772652000,-355.0,0.00033383,2]
[422259090,1778772652000,-205.3586,0.000333,5]
[422259086,1778772652000,-2829.47,0.000332,14]
[422259093,1778772652000,-573.0,0.00033384,11]
[422259097,1778772652000,-307.92,0.00033524,30]
[422259100,1778772652000,-155.0,0.00033555,30]
[422259099,1778772652000,-306.0,0.00033555,30]
[422259102,1778772652000,-3228.0,0.00033578,30]
[422259096,1778772652000,-1231.53069123,0.000335,2]
[422259103,1778772652000,-4481.0,0.00033578,30]
[422259088,1778772652000,-154.0,0.00033226,30]
[422259098,1778772652000,-254.0,0.00033549,30]
[422259107,1778772652000,-155.37996832,0.000336,120]
[422259101,1778772652000,-234.0,0.00033555,30]
[422259117,1778772652000,-1619.18,0.000338,30]
[422259104,1778772652000,-233.0,0.00033578,30]
[422259116,1778772652000,-200.0,0.00033669,2]
[422259085,1778772652000,-842.19,0.000332,30]
[422259094,1778772652000,-16116.25,0.00033463,14]
[422259113,1778772652000,-200.0,0.00033669,2]
[422259115,1778772652000,-200.0,0.00033669,2]
[422259105,1778772652000,-191.0,0.00033578,30]
[422259095,1778772652000,-156.8306539,0.00033496,2]
[422259114,1778772652000,-200.0,0.00033669,2]
[422259171,1778772653000,-920.886244,0.00034486,7]
[422259167,1778772653000,-425.186581,0.00034486,7]
[422259168,1778772653000,-425.186581,0.00034486,7]
[422259160,1778772653000,-413.199868,0.00034486,7]
[422259161,1778772653000,-413.199868,0.00034486,7]
[422259163,1778772653000,-151.0,0.00034486,7]
[422259162,1778772653000,-413.199868,0.00034486,7]
[422259166,1778772653000,-425.186581,0.00034486,7]
[422259178,1778772653000,-1565.602577,0.00034486,7]
[422259165,1778772653000,-151.0,0.00034486,7]
[422259172,1778772653000,-920.886244,0.00034486,7]
[422259177,1778772653000,-1565.602577,0.00034486,7]
[422259175,1778772653000,-1565.602577,0.00034486,7]
[422259173,1778772653000,-920.886244,0.00034486,7]
[422259183,1778772653000,-151.0,0.00034486,7]
[422259174,1778772653000,-920.886244,0.00034486,7]
[422259169,1778772653000,-425.186581,0.00034486,7]
[422259164,1778772653000,-413.199868,0.00034486,7]
[422259176,1778772653000,-1565.602577,0.00034486,7]
[422259148,1778772653000,-151.0,0.00034486,7]
[422259159,1778772653000,-591.875821,0.00034486,7]
[422259179,1778772653000,-1062.333433,0.00034486,7]
[422259146,1778772653000,-151.0,0.00034486,7]
[422259143,1778772653000,-151.0,0.00034486,7]
[422259144,1778772653000,-151.0,0.00034486,7]
[422259141,1778772653000,-729.541633,0.00034486,2]
[422259145,1778772653000,-402.640916,0.00034486,7]
[422259142,1778772653000,-151.0,0.00034486,7]
[422259157,1778772653000,-591.875821,0.00034486,7]
[422259170,1778772653000,-151.0,0.00034486,7]
[422259158,1778772653000,-591.875821,0.00034486,7]
[422259153,1778772653000,-151.0,0.00034486,7]
[422259149,1778772653000,-402.640916,0.00034486,7]
[422259150,1778772653000,-402.640916,0.00034486,7]
[422259152,1778772653000,-151.0,0.00034486,7]
[422259154,1778772653000,-151.0,0.00034486,7]
[422259151,1778772653000,-175.70569,0.00034486,7]
[422259156,1778772653000,-591.875821,0.00034486,7]
[422259155,1778772653000,-151.0,0.00034486,7]
[422259147,1778772653000,-402.640916,0.00034486,7]
[422259181,1778772653000,-1062.333433,0.00034486,7]
[422259202,1778772653000,-503.537667,0.00034486,7]
[422259180,1778772653000,-1062.333433,0.00034486,7]
[422259206,1778772653000,-254.173726,0.00034486,7]
[422259204,1778772653000,-503.537667,0.00034486,7]
[422259205,1778772653000,-787.643953,0.00034486,7]
[422259210,1778772653000,-787.643953,0.00034486,7]
[422259211,1778772653000,-787.643953,0.00034486,7]
[422259218,1778772653000,-15623.22914452,0.00034508,30]
[422259214,1778772653000,-151.0,0.00034486,7]
[422259217,1778772653000,-1180.125,0.00034507,39]
[422259212,1778772653000,-151.0,0.00034486,7]
[422259213,1778772653000,-151.0,0.00034486,7]
[422259215,1778772653000,-151.0,0.00034486,7]
[422259220,1778772653000,-582.57802036,0.00034508,30]
[422259222,1778772653000,-585.05007069,0.00034508,30]
[422259221,1778772653000,-1023.26934686,0.00034508,30]
[422259219,1778772653000,-321.92449313,0.00034508,30]
[422259223,1778772653000,-993.34152341,0.00034508,30]
[422259182,1778772653000,-1062.333433,0.00034486,7]
[422259201,1778772653000,-254.173726,0.00034486,7]
[422259203,1778772653000,-254.173726,0.00034486,7]
[422259216,1778772653000,-573.0,0.00034507,12]
[422259209,1778772653000,-254.173726,0.00034486,7]
[422259184,1778772653000,-892.364592,0.00034486,7]
[422259200,1778772653000,-503.537667,0.00034486,7]
[422259186,1778772653000,-892.364592,0.00034486,7]
[422259185,1778772653000,-892.364592,0.00034486,7]
[422259187,1778772653000,-321.442549,0.00034486,7]
[422259188,1778772653000,-892.364592,0.00034486,7]
[422259190,1778772653000,-321.442549,0.00034486,7]
[422259194,1778772653000,-882.070116,0.00034486,7]
[422259195,1778772653000,-882.070116,0.00034486,7]
[422259189,1778772653000,-321.442549,0.00034486,7]
[422259192,1778772653000,-882.070116,0.00034486,7]
[422259199,1778772653000,-6069.126935,0.00034486,7]
[422259191,1778772653000,-321.442549,0.00034486,7]
[422259196,1778772653000,-6069.126935,0.00034486,7]
[422259208,1778772653000,-787.643953,0.00034486,7]
[422259198,1778772653000,-6069.126935,0.00034486,7]
[422259197,1778772653000,-6069.126935,0.00034486,7]
[422259193,1778772653000,-882.070116,0.00034486,7]
[422259207,1778772653000,-503.537667,0.00034486,7]
[422259233,1778772654000,-1960.10178671,0.0002,2]
[422259240,1778772654000,-2748.0,0.00023,7]
[422259242,1778772654000,-8058.12,0.0002577,7]
[422259238,1778772654000,-8058.12,0.00021923,2]
[422259236,1778772654000,-1189.45646289,0.0002,2]
[422259241,1778772654000,-8058.12,0.00023847,2]
[422259235,1778772654000,-3642.70196642,0.0002,2]
[422259234,1778772654000,-615.22791125,0.0002,2]
[422259224,1778772654000,-963.76004824,0.00027397,10]
[422259231,1778772654000,-484.07166013,0.00034508,30]
[422259228,1778772654000,-151.0,0.0003013,7]
[422259227,1778772654000,-1136.24390472,0.00027397,10]
[422259225,1778772654000,-1893.14056371,0.00027397,10]
[422259230,1778772654000,-5908.8084774,0.00034508,30]
[422259229,1778772654000,-151.0,0.00034486,7]
[422259226,1778772654000,-365.74548333,0.00027397,10]
[422259239,1778772654000,-534.0,0.00023,7]
[422259232,1778772654000,-2004.5354982,0.00034508,30]
[422259243,1778772654000,-8058.12,0.00027693,7]
[422259237,1778772654000,-650.63187273,0.0002,2]
[422259245,1778772654000,-2355.12321574,0.00034508,30]
[422259244,1778772654000,-4427.38812726,0.00034508,30]
[422259263,1778772654000,-1939.16,0.00034544,60]
[422259262,1778772654000,-2402.31,0.00034544,60]
[422259259,1778772654000,-2501.3232,0.00034508,30]
[422259260,1778772654000,-677.94999998,0.00034508,30]
[422259256,1778772654000,-3790.83484911,0.00034508,30]
[422259258,1778772654000,-220.86155986,0.00034508,30]
[422259255,1778772654000,-8058.12,0.00033463,14]
[422259252,1778772654000,-3542.0,0.00026729,2]
[422259257,1778772654000,-156.18403594,0.00034508,30]
[422259261,1778772654000,-36765.86524016,0.00034508,30]
[422259253,1778772654000,-8058.12,0.00029616,7]
[422259249,1778772654000,-3542.0,0.00023729,2]
[422259248,1778772654000,-3542.0,0.00020729,2]
[422259250,1778772654000,-2634.0,0.00026402,10]
[422259251,1778772654000,-826.0,0.00026459,10]
[422259247,1778772654000,-213.0951405,0.00020448,2]
[422259254,1778772654000,-8058.12,0.0003154,7]
[422259246,1778772654000,-1909.66153725,0.00034508,30]
[422259302,1778772655000,-1500.0,0.000352,7]
[422259299,1778772655000,-152.0,0.00035054,12]
[422259296,1778772655000,-150.0,0.00035,2]
[422259294,1778772655000,-1559.4220753,0.00035,2]
[422259293,1778772655000,-250.0,0.00035,7]
[422259292,1778772655000,-480.0,0.00034982,3]
[422259301,1778772655000,-1118.64125781,0.00035162,2]
[422259300,1778772655000,-573.0,0.00035068,13]
[422259267,1778772655000,-234.0,0.00034555,30]
[422259295,1778772655000,-4000.0,0.00035,30]
[422259303,1778772655000,-151.434855,0.00035205,90]
[422259323,1778772655000,-200.0,0.000354,10]
[422259304,1778772655000,-227.1522825,0.00035205,90]
[422259306,1778772655000,-40166.0,0.00035262,30]
[422259310,1778772655000,-151.0,0.00035262,7]
[422259307,1778772655000,-40166.0,0.00035262,30]
[422259309,1778772655000,-151.0,0.00035262,7]
[422259308,1778772655000,-480.0,0.00035262,30]
[422259311,1778772655000,-151.0,0.00035262,7]
[422259313,1778772655000,-300.0,0.00035262,5]
[422259297,1778772655000,-842.19,0.00035,30]
[422259314,1778772655000,-300.0,0.00035262,5]
[422259317,1778772655000,-152.359746,0.00035262,7]
[422259318,1778772655000,-157.0,0.00035294,3]
[422259305,1778772655000,-1459.60224589,0.00035212,2]
[422259298,1778772655000,-2829.47,0.00035,14]
[422259278,1778772655000,-235.80565882,0.00034756,60]
[422259290,1778772655000,-240.0,0.00034982,3]
[422259264,1778772655000,-254.0,0.00034549,30]
[422259269,1778772655000,-4481.0,0.00034578,30]
[422259266,1778772655000,-155.0,0.00034555,30]
[422259265,1778772655000,-306.0,0.00034555,30]
[422259268,1778772655000,-3228.0,0.00034578,30]
[422259270,1778772655000,-233.0,0.00034578,30]
[422259271,1778772655000,-191.0,0.00034578,30]
[422259272,1778772655000,-722.0,0.00034578,30]
[422259273,1778772655000,-185.0,0.0003461,30]
[422259274,1778772655000,-420.0,0.0003461,30]
[422259276,1778772655000,-1081.22,0.00034638,2]
[422259291,1778772655000,-480.0,0.00034982,3]
[422259275,1778772655000,-1491.0,0.0003461,30]
[422259283,1778772655000,-376.36,0.00034891,30]
[422259282,1778772655000,-452.05,0.00034874,120]
[422259281,1778772655000,-306.9168497,0.00034838,2]
[422259277,1778772655000,-500.0,0.00034756,60]
[422259286,1778772655000,-227.91391853,0.0003493,3]
[422259279,1778772655000,-318.52,0.00034771,30]
[422259280,1778772655000,-1500.0,0.00034795,2]
[422259284,1778772655000,-1619.18,0.000349,30]
[422259287,1778772655000,-195.2163462,0.00034976,120]
[422259288,1778772655000,-379.9510458,0.00034976,120]
[422259289,1778772655000,-240.0,0.00034982,3]
[422259285,1778772655000,-181.97847963,0.0003493,3]
[422259319,1778772655000,-176.0008251,0.00035343,2]
[422259312,1778772655000,-300.0,0.00035262,5]
[422259316,1778772655000,-300.0,0.00035262,5]
[422259353,1778772655000,-500.0,0.00035616,7]
[422259359,1778772655000,-500.0,0.00035616,7]
[422259354,1778772655000,-500.0,0.00035616,7]
[422259355,1778772655000,-500.0,0.00035616,7]
[422259357,1778772655000,-500.0,0.00035616,7]
[422259352,1778772655000,-500.0,0.00035616,7]
[422259356,1778772655000,-500.0,0.00035616,7]
[422259351,1778772655000,-500.0,0.00035616,7]
[422259349,1778772655000,-500.0,0.00035616,7]
[422259358,1778772655000,-500.0,0.00035616,7]
[422259361,1778772655000,-500.0,0.00035616,7]
[422259350,1778772655000,-500.0,0.00035616,7]
[422259360,1778772655000,-500.0,0.00035616,7]
[422259371,1778772655000,-500.0,0.00035616,7]
[422259364,1778772655000,-416.3713439,0.00035616,7]
[422259369,1778772655000,-500.0,0.00035616,7]
[422259365,1778772655000,-500.0,0.00035616,7]
[422259366,1778772655000,-500.0,0.00035616,7]
[422259370,1778772655000,-500.0,0.00035616,7]
[422259362,1778772655000,-500.0,0.00035616,7]
[422259368,1778772655000,-500.0,0.00035616,7]
[422259367,1778772655000,-500.0,0.00035616,7]
[422259372,1778772655000,-500.0,0.00035616,7]
[422259315,1778772655000,-300.0,0.00035262,5]
[422259363,1778772655000,-500.0,0.00035616,7]
[422259348,1778772655000,-500.0,0.00035616,7]
[422259333,1778772655000,-233.0,0.00035578,30]
[422259341,1778772655000,-500.0,0.00035616,7]
[422259320,1778772655000,-8058.12,0.00035386,30]
[422259344,1778772655000,-500.0,0.00035616,7]
[422259321,1778772655000,-202.94,0.000354,14]
[422259322,1778772655000,-506.71837327,0.000354,10]
[422259324,1778772655000,-200.0,0.000354,10]
[422259325,1778772655000,-202.50401772,0.000354,10]
[422259326,1778772655000,-933.09242569,0.00035426,7]
[422259335,1778772655000,-722.0,0.00035578,30]
[422259329,1778772655000,-163.29773957,0.00035555,30]
[422259330,1778772655000,-234.0,0.00035555,30]
[422259332,1778772655000,-4481.0,0.00035578,30]
[422259328,1778772655000,-306.0,0.00035555,30]
[422259331,1778772655000,-3228.0,0.00035578,30]
[422259334,1778772655000,-191.0,0.00035578,30]
[422259337,1778772655000,-420.0,0.0003561,30]
[422259345,1778772655000,-500.0,0.00035616,7]
[422259336,1778772655000,-185.0,0.0003561,30]
[422259347,1778772655000,-500.0,0.00035616,7]
[422259339,1778772655000,-500.0,0.00035616,7]
[422259346,1778772655000,-500.0,0.00035616,7]
[422259340,1778772655000,-500.0,0.00035616,7]
[422259338,1778772655000,-1491.0,0.0003561,30]
[422259342,1778772655000,-500.0,0.00035616,7]
[422259327,1778772655000,-254.0,0.00035549,30]
[422259343,1778772655000,-500.0,0.00035616,7]
[422259414,1778772656000,-573.0,0.0003563,13]
[422259409,1778772656000,-151.0,0.00035616,7]
[422259420,1778772656000,-151.0,0.00035999,37]
[422259410,1778772656000,-151.0,0.00035616,7]
[422259397,1778772656000,-500.0,0.00035616,7]
[422259404,1778772656000,-500.0,0.00035616,7]
[422259407,1778772656000,-221.93749836,0.00035616,2]
[422259399,1778772656000,-500.0,0.00035616,7]
[422259406,1778772656000,-233.140647,0.00035616,7]
[422259411,1778772656000,-151.0,0.00035616,7]
[422259405,1778772656000,-1065.33,0.00035616,2]
[422259418,1778772656000,-150.0,0.00035981,2]
[422259431,1778772656000,-151.0,0.00035999,30]
[422259419,1778772656000,-151.0,0.00035999,30]
[422259413,1778772656000,-151.0,0.00035616,7]
[422259416,1778772656000,-1619.18,0.000359,30]
[422259417,1778772656000,-468.75403821,0.00035964,7]
[422259415,1778772656000,-1117.01680253,0.00035755,2]
[422259421,1778772656000,-200.0,0.00035999,30]
[422259430,1778772656000,-4407.9357677,0.00035999,30]
[422259426,1778772656000,-242.57862895,0.00035999,37]
[422259425,1778772656000,-584.86588519,0.00035999,30]
[422259432,1778772656000,-151.0,0.00035999,37]
[422259408,1778772656000,-151.0,0.00035616,7]
[422259412,1778772656000,-151.0,0.00035616,7]
[422259402,1778772656000,-500.0,0.00035616,7]
[422259391,1778772656000,-500.0,0.00035616,7]
[422259400,1778772656000,-500.0,0.00035616,7]
[422259374,1778772656000,-500.0,0.00035616,7]
[422259376,1778772656000,-500.0,0.00035616,7]
[422259377,1778772656000,-500.0,0.00035616,7]
[422259375,1778772656000,-500.0,0.00035616,7]
[422259378,1778772656000,-500.0,0.00035616,7]
[422259383,1778772656000,-500.0,0.00035616,7]
[422259380,1778772656000,-500.0,0.00035616,7]
[422259373,1778772656000,-500.0,0.00035616,7]
[422259384,1778772656000,-500.0,0.00035616,7]
[422259381,1778772656000,-500.0,0.00035616,7]
[422259382,1778772656000,-500.0,0.00035616,7]
[422259385,1778772656000,-500.0,0.00035616,7]
[422259386,1778772656000,-500.0,0.00035616,7]
[422259387,1778772656000,-500.0,0.00035616,7]
[422259428,1778772656000,-500.0,0.00035999,37]
[422259394,1778772656000,-500.0,0.00035616,7]
[422259396,1778772656000,-500.0,0.00035616,7]
[422259389,1778772656000,-500.0,0.00035616,7]
[422259390,1778772656000,-500.0,0.00035616,7]
[422259392,1778772656000,-600.0,0.00035616,7]
[422259395,1778772656000,-500.0,0.00035616,7]
[422259388,1778772656000,-500.0,0.00035616,7]
[422259393,1778772656000,-500.0,0.00035616,7]
[422259398,1778772656000,-500.0,0.00035616,7]
[422259401,1778772656000,-500.0,0.00035616,7]
[422259403,1778772656000,-500.0,0.00035616,7]
[422259424,1778772656000,-1148.61238259,0.00035999,30]
[422259379,1778772656000,-500.0,0.00035616,7]
[422259427,1778772656000,-601.3376128,0.00035999,37]
[422259453,1778772656000,-1223.0,0.0003609,2]
[422259461,1778772656000,-310.1967143,0.00036222,2]
[422259464,1778772656000,-151.0,0.00036399,30]
[422259474,1778772656000,-152.0,0.00036399,30]
[422259463,1778772656000,-329.59,0.00036362,60]
[422259465,1778772656000,-200.0,0.00036399,30]
[422259466,1778772656000,-559.19188,0.00036399,30]
[422259467,1778772656000,-500.0,0.00036399,30]
[422259471,1778772656000,-151.0,0.00036399,30]
[422259473,1778772656000,-162.380719,0.00036399,30]
[422259469,1778772656000,-537.6845,0.00036399,30]
[422259462,1778772656000,-150.0,0.000363,2]
[422259468,1778772656000,-1107.63007,0.00036399,30]
[422259472,1778772656000,-690.85750221,0.00036399,30]